[Event "The Elitserien 2024/25: round 1 - 3"]
[Site "Scandic Infra City, Kanalvagen 10, Upplands Vasby, Sweden"]
[Date "2024.10.05"]
[Round "2.16"]
[White "Krantz, Christopher"]
[Black "Nygren, Kim"]
[Result "1/2-1/2"]
[TimeControl "90 minutes for 40 moves + 30 minutes for the rest of the game + 30 seconds per move from move one."]
[BlackTitle "CM"]
[WhiteFideId "1707876"]
[BlackFideId "1706136"]
[WhiteElo "2225"]
[BlackElo "2155"]

1. d4 {[%clk 01:30:57]} {[%emt 00:00:04]} g6 {[%clk 01:29:31]} {[%emt
00:01:29]} 2. e4 {[%clk 01:31:06]} {[%emt 00:00:20]} Bg7 {[%clk 01:29:32]}
{[%emt 00:00:26]} 3. Nf3 {[%clk 01:31:27]} {[%emt 00:00:12]} d6 {[%clk
01:29:09]} {[%emt 00:00:53]} 4. Bc4 {[%clk 01:31:40]} {[%emt 00:00:18]} e6
{[%clk 01:28:53]} {[%emt 00:00:46]} 5. Nc3 {[%clk 01:26:27]} {[%emt 00:05:42]}
Ne7 {[%clk 01:27:48]} {[%emt 00:01:35]} 6. Be3 {[%clk 01:22:39]} {[%emt
00:04:18]} a6 {[%clk 01:25:26]} {[%emt 00:02:52]} 7. Bb3 {[%clk 01:21:38]}
{[%emt 00:01:32]} Nd7 {[%clk 01:21:18]} {[%emt 00:04:38]} 8. Qd2 {[%clk
01:20:43]} {[%emt 00:01:25]} h6 {[%clk 01:21:22]} {[%emt 00:00:25]} 9. O-O
{[%clk 01:18:38]} {[%emt 00:02:35]} b6 {[%clk 01:16:16]} {[%emt 00:05:37]} 10.
Ne2 {[%clk 01:13:43]} {[%emt 00:05:25]} Bb7 {[%clk 01:14:12]} {[%emt 00:02:33]}
11. Ng3 {[%clk 01:13:33]} {[%emt 00:00:40]} Nf6 {[%clk 01:08:13]} {[%emt
00:06:29]} 12. Qd3 {[%clk 01:08:22]} {[%emt 00:05:41]} O-O {[%clk 00:42:45]}
{[%emt 00:25:59]} 13. c3 {[%clk 01:01:17]} {[%emt 00:07:34]} d5 {[%clk
00:38:53]} {[%emt 00:04:22]} 14. e5 {[%clk 00:51:31]} {[%emt 00:10:15]} Ne4
{[%clk 00:30:47]} {[%emt 00:08:36]} 15. Nd2 {[%clk 00:44:31]} {[%emt 00:07:31]}
Nxg3 {[%clk 00:12:39]} {[%emt 00:18:38]} 16. fxg3 {[%clk 00:43:07]} {[%emt
00:01:55]} c5 {[%clk 00:11:35]} {[%emt 00:01:34]} 17. Qe2 {[%clk 00:38:21]}
{[%emt 00:05:15]} cxd4 {[%clk 00:10:34]} {[%emt 00:01:31]} 18. cxd4 {[%clk
00:38:10]} {[%emt 00:00:40]} a5 {[%clk 00:09:49]} {[%emt 00:01:16]} 19. Bc2
{[%clk 00:31:32]} {[%emt 00:07:09]} Ba6 {[%clk 00:10:06]} {[%emt 00:00:12]} 20.
Bd3 {[%clk 00:31:58]} {[%emt 00:00:04]} Bxd3 {[%clk 00:10:25]} {[%emt
00:00:11]} 21. Qxd3 {[%clk 00:32:22]} {[%emt 00:00:04]} Qd7 {[%clk 00:09:17]}
{[%emt 00:01:40]} 22. g4 {[%clk 00:26:51]} {[%emt 00:06:01]} Rac8 {[%clk
00:04:27]} {[%emt 00:05:19]} 23. Nf3 {[%clk 00:25:09]} {[%emt 00:02:13]} Qc6
{[%clk 00:03:32]} {[%emt 00:01:24]} 24. Rf2 {[%clk 00:17:26]} {[%emt 00:08:14]}
Qc4 {[%clk 00:02:16]} {[%emt 00:01:47]} 25. Qd2 {[%clk 00:15:53]} {[%emt
00:02:03]} Kh7 {[%clk 00:02:28]} {[%emt 00:00:17]} 26. h3 {[%clk 00:12:24]}
{[%emt 00:03:57]} Ng8 {[%clk 00:01:05]} {[%emt 00:01:55]} 27. Qd1 {[%clk
00:07:56]} {[%emt 00:04:57]} Qc7 {[%clk 00:00:49]} {[%emt 00:00:47]} 28. Rc1
{[%clk 00:06:57]} {[%emt 00:01:29]} Qd7 {[%clk 00:01:05]} {[%emt 00:00:12]} 29.
Rfc2 {[%clk 00:05:59]} {[%emt 00:01:29]} Ne7 {[%clk 00:00:54]} {[%emt
00:00:42]} 30. Qd3 {[%clk 00:03:52]} {[%emt 00:02:37]} Rxc2 {[%clk 00:01:08]}
{[%emt 00:00:16]} 31. Rxc2 {[%clk 00:04:18]} {[%emt 00:00:04]} Rc8 {[%clk
00:01:27]} {[%emt 00:00:11]} 32. Bd2 {[%clk 00:03:41]} {[%emt 00:01:07]} Rxc2
{[%clk 00:00:55]} {[%emt 00:01:03]} 33. Qxc2 {[%clk 00:04:08]} {[%emt
00:00:03]} Qc6 {[%clk 00:01:04]} {[%emt 00:00:19]} 34. Qb3 {[%clk 00:03:45]}
{[%emt 00:00:53]} Bf8 {[%clk 00:00:52]} {[%emt 00:00:44]} 35. a3 {[%clk
00:02:42]} {[%emt 00:01:33]} Kg8 {[%clk 00:00:49]} {[%emt 00:00:32]} 36. Bc3
{[%clk 00:02:16]} {[%emt 00:00:56]} g5 {[%clk 00:00:41]} {[%emt 00:00:38]} 37.
h4 {[%clk 00:01:48]} {[%emt 00:00:58]} Ng6 {[%clk 00:00:37]} {[%emt 00:00:34]}
38. h5 {[%clk 00:00:46]} {[%emt 00:01:33]} Ne7 {[%clk 00:00:36]} {[%emt
00:00:31]} 39. Qd1 {[%clk 00:00:45]} {[%emt 00:00:30]} Qc4 {[%clk 00:00:49]}
{[%emt 00:00:17]} 40. Qd2 {[%clk 00:00:36]} {[%emt 00:00:38]} Bg7 {[%clk
00:00:42]} {[%emt 00:00:38]} 41. Qe3 {[%clk 00:24:44]} {[%emt 00:06:22]} Qb3
{[%clk 00:26:52]} {[%emt 00:04:20]} 42. Qc1 {[%clk 00:23:00]} {[%emt 00:02:14]}
Qc4 {[%clk 00:18:16]} {[%emt 00:09:06]} 43. Qc2 {[%clk 00:19:55]} {[%emt
00:03:35]} Qc7 {[%clk 00:05:23]} {[%emt 00:13:20]} 44. Qa4 {[%clk 00:13:01]}
{[%emt 00:07:26]} Qc6 {[%clk 00:05:06]} {[%emt 00:00:48]} 45. Qb3 {[%clk
00:12:43]} {[%emt 00:00:48]} Nc8 {[%clk 00:03:56]} {[%emt 00:01:40]} 46. a4
{[%clk 00:11:37]} {[%emt 00:01:36]} Bf8 {[%clk 00:03:37]} {[%emt 00:00:50]} 47.
Nd2 {[%clk 00:09:29]} {[%emt 00:02:37]} Be7 {[%clk 00:03:10]} {[%emt 00:00:57]}
48. Kf2 {[%clk 00:08:06]} {[%emt 00:01:52]} Na7 {[%clk 00:02:42]} {[%emt
00:00:59]} 49. Nf3 {[%clk 00:06:59]} {[%emt 00:01:36]} Kg7 {[%clk 00:02:14]}
{[%emt 00:00:59]} 50. Bd2 {[%clk 00:05:01]} {[%emt 00:02:27]} 1/2-1/2

[Event "The Elitserien 2024/25: round 1 - 3"]
[Site "Scandic Infra City, Kanalvagen 10, Upplands Vasby, Sweden"]
[Date "2024.10.05"]
[Round "2.17"]
[White "Soderstrom, Adrian"]
[Black "Sumets, Andrey"]
[Result "1/2-1/2"]
[TimeControl "90 minutes for 40 moves + 30 minutes for the rest of the game + 30 seconds per move from move one."]
[WhiteTitle "FM"]
[BlackTitle "GM"]
[WhiteFideId "1745786"]
[BlackFideId "14105500"]
[WhiteElo "2318"]
[BlackElo "2517"]

1. d4 {[%clk 01:30:48]} {[%emt 00:00:11]} Nf6 {[%clk 01:28:40]} {[%emt
00:02:19]} 2. c4 {[%clk 01:31:08]} {[%emt 00:00:13]} e6 {[%clk 01:29:06]}
{[%emt 00:00:03]} 3. Nf3 {[%clk 01:29:58]} {[%emt 00:01:39]} d5 {[%clk
01:29:31]} {[%emt 00:00:06]} 4. g3 {[%clk 01:28:48]} {[%emt 00:01:41]} Bb4+
{[%clk 01:27:27]} {[%emt 00:02:33]} 5. Bd2 {[%clk 01:28:00]} {[%emt 00:01:17]}
Be7 {[%clk 01:27:47]} {[%emt 00:00:11]} 6. Bg2 {[%clk 01:28:25]} {[%emt
00:00:04]} c6 {[%clk 01:28:06]} {[%emt 00:00:12]} 7. O-O {[%clk 01:27:21]}
{[%emt 00:01:32]} O-O {[%clk 01:26:04]} {[%emt 00:02:32]} 8. Qc2 {[%clk
01:27:42]} {[%emt 00:00:10]} Nbd7 {[%clk 01:26:13]} {[%emt 00:00:20]} 9. Bf4
{[%clk 01:27:16]} {[%emt 00:00:57]} a5 {[%clk 01:26:35]} {[%emt 00:00:09]} 10.
Rd1 {[%clk 01:17:32]} {[%emt 00:10:13]} Nh5 {[%clk 01:21:29]} {[%emt 00:05:35]}
11. Bc1 {[%clk 01:16:16]} {[%emt 00:01:46]} Nhf6 {[%clk 01:19:37]} {[%emt
00:02:23]} 12. Bf4 {[%clk 01:05:56]} {[%emt 00:10:50]} b6 {[%clk 01:15:07]}
{[%emt 00:05:01]} 13. Nc3 {[%clk 01:00:27]} {[%emt 00:05:57]} Ba6 {[%clk
01:13:27]} {[%emt 00:02:09]} 14. b3 {[%clk 00:53:52]} {[%emt 00:07:06]} Rc8
{[%clk 01:09:35]} {[%emt 00:04:22]} 15. e4 {[%emt 00:06:09]} dxc4 {[%clk
01:08:41]} 16. h4 {[%clk 00:40:46]} {[%emt 00:09:22]} cxb3 {[%clk 01:04:30]}
{[%emt 00:04:41]} 17. axb3 {[%clk 00:40:53]} {[%emt 00:00:24]} Re8 {[%clk
01:04:37]} {[%emt 00:00:21]} 18. Na4 {[%clk 00:34:00]} {[%emt 00:07:24]} Bb7
{[%clk 00:56:58]} {[%emt 00:08:08]} 19. Ne5 {[%clk 00:32:38]} {[%emt 00:01:53]}
Nf8 {[%clk 00:48:52]} {[%emt 00:08:34]} 20. Nc4 {[%clk 00:29:04]} {[%emt
00:04:07]} N6d7 {[%clk 00:48:00]} {[%emt 00:01:21]} 21. Nd6 {[%clk 00:27:35]}
{[%emt 00:01:58]} Bxd6 {[%clk 00:48:26]} {[%emt 00:00:05]} 22. Bxd6 {[%clk
00:28:03]} {[%emt 00:00:02]} Nf6 {[%clk 00:46:00]} {[%emt 00:02:55]} 23. Bf4
{[%clk 00:26:54]} {[%emt 00:01:40]} h6 {[%clk 00:43:48]} {[%emt 00:02:42]} 24.
Qe2 {[%clk 00:25:08]} {[%emt 00:02:15]} Ng6 {[%clk 00:39:31]} {[%emt 00:04:47]}
25. Be3 {[%clk 00:25:04]} {[%emt 00:00:35]} Nd7 {[%clk 00:32:54]} {[%emt
00:07:06]} 26. h5 {[%clk 00:23:25]} {[%emt 00:02:09]} Ngf8 {[%clk 00:32:40]}
{[%emt 00:00:44]} 27. Rac1 {[%clk 00:14:09]} {[%emt 00:09:47]} Qe7 {[%clk
00:28:10]} {[%emt 00:04:58]} 28. e5 {[%clk 00:12:15]} {[%emt 00:02:25]} Ba8
{[%clk 00:22:00]} {[%emt 00:06:42]} 29. Nc3 {[%clk 00:11:14]} {[%emt 00:01:31]}
c5 {[%clk 00:20:57]} {[%emt 00:01:32]} 30. Bxa8 {[%clk 00:09:24]} {[%emt
00:02:20]} Rxa8 {[%clk 00:21:23]} {[%emt 00:00:05]} 31. dxc5 {[%clk 00:08:43]}
{[%emt 00:01:10]} Nxc5 {[%clk 00:19:53]} {[%emt 00:01:59]} 32. Bxc5 {[%clk
00:08:49]} {[%emt 00:00:25]} bxc5 {[%clk 00:20:00]} {[%emt 00:00:23]} 33. Na4
{[%clk 00:05:30]} {[%emt 00:03:49]} Nd7 {[%clk 00:18:58]} {[%emt 00:01:31]} 34.
Qe3 {[%clk 00:05:40]} {[%emt 00:00:21]} Rec8 {[%clk 00:14:18]} {[%emt
00:05:07]} 35. Rxd7 {[%clk 00:05:47]} {[%emt 00:00:25]} 1/2-1/2

[Event "The Elitserien 2024/25: round 1 - 3"]
[Site "Scandic Infra City, Kanalvagen 10, Upplands Vasby, Sweden"]
[Date "2024.10.05"]
[Round "2.18"]
[White "Solodovnichenko, Yuri"]
[Black "Lindh, Fredrik"]
[Result "1-0"]
[TimeControl "90 minutes for 40 moves + 30 minutes for the rest of the game + 30 seconds per move from move one."]
[WhiteTitle "GM"]
[BlackTitle "FM"]
[WhiteFideId "14104369"]
[BlackFideId "1707884"]
[WhiteElo "2490"]
[BlackElo "2284"]

1. e4 {[%clk 01:30:57]} {[%emt 00:00:02]} c5 {[%clk 01:30:18]} {[%emt
00:00:38]} 2. Nf3 {[%clk 01:29:02]} {[%emt 00:02:30]} Nc6 {[%clk 01:30:36]}
{[%emt 00:00:12]} 3. Nc3 {[%clk 01:29:03]} {[%emt 00:00:29]} Nf6 {[%clk
01:29:35]} {[%emt 00:01:31]} 4. Bb5 {[%clk 01:29:18]} {[%emt 00:00:16]} Qc7
{[%clk 01:29:35]} {[%emt 00:00:31]} 5. d3 {[%clk 01:29:32]} {[%emt 00:00:16]}
g6 {[%clk 01:27:47]} {[%emt 00:02:18]} 6. O-O {[%clk 01:26:18]} {[%emt
00:03:45]} Bg7 {[%clk 01:26:26]} {[%emt 00:01:50]} 7. Re1 {[%clk 01:24:59]}
{[%emt 00:01:50]} a6 {[%clk 00:41:48]} {[%emt 00:45:07]} 8. e5 {[%clk
01:11:40]} {[%emt 00:13:49]} Nxe5 {[%clk 00:22:51]} {[%emt 00:19:27]} 9. Nxe5
{[%clk 01:11:23]} {[%emt 00:00:47]} axb5 {[%clk 00:23:15]} {[%emt 00:00:06]} 10.
Nxb5 {[%clk 01:11:30]} {[%emt 00:00:23]} Qb6 {[%clk 00:23:04]} {[%emt
00:00:41]} 11. Nc4 {[%clk 01:11:28]} {[%emt 00:00:31]} Qd8 {[%clk 00:22:50]}
{[%emt 00:00:44]} 12. Bf4 {[%clk 01:10:59]} {[%emt 00:01:01]} Nd5 {[%clk
00:22:13]} {[%emt 00:01:06]} 13. Bd6 {[%clk 00:56:17]} {[%emt 00:15:12]} O-O
{[%clk 00:18:10]} {[%emt 00:04:33]} 14. Rxe7 {[%clk 00:53:01]} {[%emt
00:03:46]} Nxe7 {[%clk 00:18:18]} {[%emt 00:00:22]} 15. Bc7 {[%clk 00:53:24]}
{[%emt 00:00:07]} d5 {[%clk 00:18:04]} {[%emt 00:00:44]} 16. Bxd8 {[%clk
00:53:45]} {[%emt 00:00:09]} Rxd8 {[%clk 00:18:30]} {[%emt 00:00:05]} 17. Nb6
{[%clk 00:53:23]} {[%emt 00:00:52]} Ra5 {[%clk 00:18:19]} {[%emt 00:00:41]} 18.
Qe1 {[%clk 00:51:36]} {[%emt 00:02:16]} Nc6 {[%clk 00:18:02]} {[%emt 00:00:48]}
19. Nd6 {[%clk 00:49:30]} {[%emt 00:02:36]} Rxd6 {[%clk 00:16:24]} {[%emt
00:02:08]} 20. Qe8+ {[%clk 00:49:17]} {[%emt 00:00:44]} Bf8 {[%clk 00:16:50]}
{[%emt 00:00:05]} 21. Qxc8 {[%clk 00:49:17]} {[%emt 00:00:29]} Ne7 {[%clk
00:11:13]} {[%emt 00:06:07]} 22. Qc7 {[%clk 00:49:32]} {[%emt 00:00:14]} Rc6
{[%clk 00:10:58]} {[%emt 00:00:45]} 23. Qd8 {[%clk 00:49:50]} {[%emt 00:00:11]}
Ra6 {[%clk 00:10:57]} {[%emt 00:00:32]} 24. Nxd5 {[%clk 00:49:17]} {[%emt
00:01:03]} Nxd5 {[%clk 00:08:57]} {[%emt 00:02:30]} 25. Qxd5 {[%clk 00:49:40]}
{[%emt 00:00:06]} Re6 {[%clk 00:08:55]} {[%emt 00:00:31]} 26. Kf1 {[%clk
00:47:39]} {[%emt 00:02:32]} Rad6 {[%clk 00:08:14]} {[%emt 00:01:12]} 27. Qf3
{[%clk 00:44:44]} {[%emt 00:03:23]} Rb6 {[%clk 00:06:17]} {[%emt 00:02:27]} 28.
b3 {[%clk 00:42:02]} {[%emt 00:03:12]} Rf6 {[%clk 00:05:19]} {[%emt 00:01:29]}
29. Qh3 {[%clk 00:41:52]} {[%emt 00:00:39]} Rf5 {[%clk 00:05:16]} {[%emt
00:00:35]} 30. Re1 {[%clk 00:41:53]} {[%emt 00:00:28]} Rbf6 {[%clk 00:04:04]}
{[%emt 00:01:42]} 31. Re2 {[%clk 00:41:18]} {[%emt 00:01:04]} b5 {[%clk
00:01:13]} {[%emt 00:03:21]} 32. a4 {[%clk 00:37:36]} {[%emt 00:04:13]} bxa4
{[%clk 00:01:25]} {[%emt 00:00:19]} 33. bxa4 {[%clk 00:38:01]} {[%emt
00:00:04]} Ra6 {[%clk 00:01:12]} {[%emt 00:00:43]} 34. Qh4 {[%clk 00:34:47]}
{[%emt 00:03:42]} Rb6 {[%clk 00:00:49]} {[%emt 00:00:54]} 35. Qd8 {[%clk
00:33:18]} {[%emt 00:02:00]} Rd6 {[%clk 00:00:55]} {[%emt 00:00:25]} 36. Qc8
{[%clk 00:33:17]} {[%emt 00:00:30]} Rdf6 {[%clk 00:00:42]} {[%emt 00:00:43]} 37.
g4 {[%clk 00:32:55]} {[%emt 00:00:51]} Rf4 {[%clk 00:00:48]} {[%emt 00:00:25]}
38. g5 {[%clk 00:33:15]} {[%emt 00:00:11]} R6f5 {[%clk 00:00:39]} {[%emt
00:00:39]} 39. Re8 {[%clk 00:33:21]} {[%emt 00:00:23]} Rxf2+ {[%clk 00:00:48]}
{[%emt 00:00:22]} 40. Ke1 {[%clk 00:33:41]} {[%emt 00:00:09]} Rf1+ {[%clk
00:00:45]} {[%emt 00:00:34]} 41. Kd2 {[%clk 00:33:55]} {[%emt 00:00:16]} 1-0

[Event "The Elitserien 2024/25: round 1 - 3"]
[Site "Scandic Infra City, Kanalvagen 10, Upplands Vasby, Sweden"]
[Date "2024.10.05"]
[Round "2.19"]
[White "Van Hengel, Hugo"]
[Black "Hillarp, Tiger"]
[Result "0-1"]
[TimeControl "90 minutes for 40 moves + 30 minutes for the rest of the game + 30 seconds per move from move one."]
[WhiteTitle "FM"]
[BlackTitle "GM"]
[WhiteFideId "1008161"]
[BlackFideId "1700812"]
[WhiteElo "2236"]
[BlackElo "2457"]

1. e4 {[%clk 01:30:56]} {[%emt 00:00:02]} c5 {[%clk 01:30:55]} {[%emt
00:00:06]} 2. Nf3 {[%clk 01:31:18]} {[%emt 00:00:08]} d6 {[%clk 01:31:20]}
{[%emt 00:00:06]} 3. d4 {[%clk 01:31:43]} {[%emt 00:00:05]} cxd4 {[%clk
01:31:46]} {[%emt 00:00:04]} 4. Nxd4 {[%clk 01:32:07]} {[%emt 00:00:06]} Nf6
{[%clk 01:32:09]} {[%emt 00:00:07]} 5. Nc3 {[%clk 01:32:32]} {[%emt 00:00:03]}
a6 {[%clk 01:32:25]} {[%emt 00:00:16]} 6. Bg5 {[%clk 01:31:04]} {[%emt
00:01:57]} e6 {[%clk 01:32:30]} {[%emt 00:00:23]} 7. f4 {[%clk 01:30:50]}
{[%emt 00:00:46]} Qc7 {[%clk 01:32:40]} {[%emt 00:00:19]} 8. Qd2 {[%clk
01:26:58]} {[%emt 00:04:23]} Nbd7 {[%clk 01:32:20]} {[%emt 00:00:50]} 9. O-O-O
{[%clk 01:25:44]} {[%emt 00:01:44]} b5 {[%clk 01:30:58]} {[%emt 00:01:52]} 10.
Qe3 {[%clk 00:53:04]} {[%emt 00:33:11]} Be7 {[%clk 01:13:55]} {[%emt 00:17:32]}
11. Bxf6 {[%clk 00:40:01]} {[%emt 00:13:33]} Nxf6 {[%clk 01:13:10]} {[%emt
00:01:15]} 12. Bd3 {[%clk 00:30:42]} {[%emt 00:09:49]} b4 {[%clk 01:11:29]}
{[%emt 00:02:11]} 13. Nce2 {[%clk 00:30:40]} {[%emt 00:00:32]} e5 {[%clk
01:07:31]} {[%emt 00:04:28]} 14. Nf5 {[%clk 00:29:10]} {[%emt 00:02:01]} Bxf5
{[%clk 01:07:51]} {[%emt 00:00:09]} 15. exf5 {[%clk 00:29:36]} {[%emt
00:00:06]} O-O {[%clk 01:08:12]} {[%emt 00:00:07]} 16. Kb1 {[%clk 00:22:56]}
{[%emt 00:07:11]} Rfe8 {[%clk 01:07:23]} {[%emt 00:01:18]} 17. Qf3 {[%clk
00:17:15]} {[%emt 00:06:11]} d5 {[%clk 00:58:19]} {[%emt 00:09:34]} 18. fxe5
{[%clk 00:16:26]} {[%emt 00:01:20]} Qxe5 {[%clk 00:58:39]} {[%emt 00:00:09]} 19.
Qf4 {[%clk 00:11:31]} {[%emt 00:05:25]} Bc5 {[%clk 00:55:00]} {[%emt 00:04:09]}
20. Qxe5 {[%clk 00:10:35]} {[%emt 00:01:27]} Rxe5 {[%clk 00:55:23]} {[%emt
00:00:07]} 21. h3 {[%clk 00:10:55]} {[%emt 00:00:10]} h5 {[%clk 00:43:54]}
{[%emt 00:11:59]} 22. g4 {[%clk 00:08:06]} {[%emt 00:03:20]} hxg4 {[%clk
00:34:42]} {[%emt 00:09:41]} 23. hxg4 {[%clk 00:08:28]} {[%emt 00:00:07]} Nxg4
{[%clk 00:35:06]} {[%emt 00:00:06]} 24. Rh4 {[%clk 00:05:58]} {[%emt 00:03:00]}
Nf2 {[%clk 00:35:09]} {[%emt 00:00:26]} 25. Rf1 {[%clk 00:04:51]} {[%emt
00:01:37]} Rae8 {[%clk 00:33:34]} {[%emt 00:02:06]} 26. Bxa6 {[%clk 00:03:49]}
{[%emt 00:01:31]} Rxe2 {[%clk 00:33:46]} {[%emt 00:00:18]} 27. Bxe2 {[%clk
00:04:12]} {[%emt 00:00:08]} Rxe2 {[%clk 00:34:10]} {[%emt 00:00:06]} 28. Rg1
{[%clk 00:02:19]} {[%emt 00:02:22]} Ne4 {[%clk 00:28:03]} {[%emt 00:06:37]} 29.
Rgh1 {[%clk 00:02:31]} {[%emt 00:00:18]} Kf8 {[%clk 00:28:26]} {[%emt
00:00:07]} 30. Rh8+ {[%clk 00:02:12]} {[%emt 00:00:49]} Ke7 {[%clk 00:28:45]}
{[%emt 00:00:11]} 31. Rb8 {[%clk 00:02:11]} {[%emt 00:00:31]} Kf6 {[%clk
00:28:20]} {[%emt 00:00:54]} 32. Rb7 {[%clk 00:02:14]} {[%emt 00:00:29]} Rf2
{[%clk 00:27:47]} {[%emt 00:01:02]} 33. Rb5 {[%clk 00:00:58]} {[%emt 00:01:46]}
Kxf5 {[%clk 00:26:14]} {[%emt 00:02:03]} 34. Rd1 {[%clk 00:00:46]} {[%emt
00:00:43]} Ke6 {[%clk 00:26:00]} 0-1

[Event "The Elitserien 2024/25: round 1 - 3"]
[Site "Scandic Infra City, Kanalvagen 10, Upplands Vasby, Sweden"]
[Date "2024.10.05"]
[Round "2.20"]
[White "Arman, Deniz"]
[Black "Walinder, Lars"]
[Result "1-0"]
[TimeControl "90 minutes for 40 moves + 30 minutes for the rest of the game + 30 seconds per move from move one."]
[WhiteTitle "FM"]
[BlackTitle "FM"]
[WhiteFideId "6302106"]
[BlackFideId "1707329"]
[WhiteElo "2348"]
[BlackElo "2223"]

1. e4 {[%clk 01:30:54]} {[%emt 00:00:05]} e6 {[%clk 01:30:10]} {[%emt
00:00:50]} 2. d4 {[%clk 01:30:31]} {[%emt 00:00:54]} d5 {[%clk 01:30:33]}
{[%emt 00:00:06]} 3. exd5 {[%clk 01:28:21]} {[%emt 00:02:40]} exd5 {[%clk
01:30:16]} {[%emt 00:00:47]} 4. Bd3 {[%clk 01:28:29]} {[%emt 00:00:22]} Nc6
{[%clk 01:30:28]} {[%emt 00:00:18]} 5. c3 {[%clk 01:26:06]} {[%emt 00:02:53]}
Bd6 {[%clk 01:30:44]} {[%emt 00:00:14]} 6. Nf3 {[%clk 01:25:19]} {[%emt
00:01:18]} Nge7 {[%clk 01:30:59]} {[%emt 00:00:13]} 7. O-O {[%clk 01:25:23]}
{[%emt 00:00:27]} Bg4 {[%clk 01:30:38]} {[%emt 00:00:51]} 8. Re1 {[%clk
01:22:28]} {[%emt 00:03:24]} Qd7 {[%clk 01:29:24]} {[%emt 00:01:44]} 9. Nbd2
{[%clk 01:20:05]} {[%emt 00:02:54]} O-O-O {[%clk 01:21:14]} {[%emt 00:08:39]}
10. b4 {[%clk 01:14:09]} {[%emt 00:06:26]} Rde8 {[%clk 01:04:07]} {[%emt
00:17:36]} 11. Qa4 {[%clk 01:10:05]} {[%emt 00:04:35]} Kb8 {[%clk 01:00:09]}
{[%emt 00:04:28]} 12. b5 {[%clk 01:09:35]} {[%emt 00:01:00]} Nd8 {[%clk
01:00:16]} {[%emt 00:00:23]} 13. Ne5 {[%clk 01:06:44]} {[%emt 00:03:21]} Bxe5
{[%clk 00:59:31]} {[%emt 00:01:15]} 14. dxe5 {[%clk 01:07:05]} {[%emt
00:00:09]} Ng6 {[%clk 00:50:55]} {[%emt 00:09:06]} 15. Nb3 {[%clk 00:54:39]}
{[%emt 00:12:56]} Nxe5 {[%clk 00:39:29]} {[%emt 00:11:55]} 16. Be3 {[%clk
00:44:55]} {[%emt 00:10:14]} b6 {[%clk 00:38:20]} {[%emt 00:01:40]} 17. Nc5
{[%clk 00:36:37]} {[%emt 00:08:48]} Qd6 {[%clk 00:26:38]} {[%emt 00:12:12]} 18.
Na6+ {[%clk 00:35:12]} {[%emt 00:01:55]} Kb7 {[%clk 00:24:52]} {[%emt
00:02:16]} 19. Bf4 {[%clk 00:33:29]} {[%emt 00:02:13]} Bd7 {[%clk 00:20:46]}
{[%emt 00:04:37]} 20. Rad1 {[%clk 00:28:47]} {[%emt 00:05:11]} Qf6 {[%clk
00:08:31]} {[%emt 00:12:46]} 21. Bf1 {[%clk 00:21:09]} {[%emt 00:08:08]} Re7
{[%clk 00:03:02]} {[%emt 00:06:00]} 22. Re3 {[%clk 00:12:15]} {[%emt 00:09:24]}
Rhe8 {[%clk 00:01:53]} {[%emt 00:01:39]} 23. Bg3 {[%clk 00:11:48]} {[%emt
00:00:56]} Ng4 {[%clk 00:00:57]} {[%emt 00:01:27]} 24. Rxe7 {[%clk 00:12:06]}
Rxe7 {[%clk 00:01:11]} {[%emt 00:00:28]} 25. Nxc7 {[%clk 00:12:19]} {[%emt
00:00:17]} 1-0